fUSD/lending_fUSD_20240319
["ID","MTS","AMOUNT","RATE_DAILY","PERIOD"]
[319589568,1710883900275,-2680.0,0.00031232,2]
[319589569,1710883900286,-3800.13,0.00031232,2]
[319589570,1710883900296,-294.136103,0.00031232,7]
[319589571,1710883900305,-9598.64,0.00031232,2]
[319589572,1710883900315,-10097.33,0.00031232,2]
[319589573,1710883900324,-8797.6,0.00031232,2]
[319589574,1710883900334,-7590.43,0.00031232,2]
[319589575,1710883900344,-542.95,0.00031232,2]
[319589576,1710883900354,-563.84,0.00031232,2]
[319589577,1710883900364,-500.0,0.00031232,2]
[319589578,1710883900374,-1046.81,0.00031232,2]
[319589579,1710883900384,-535.47,0.00031232,2]
[319589580,1710883900394,-8014.33,0.00031232,2]
[319589581,1710883900403,-520.47,0.00031232,2]
[319589582,1710883900413,-1416.49,0.00031232,2]
[319589583,1710883900423,-48477.6,0.00031232,2]
[319589584,1710883900433,-7398.21,0.00031232,2]
[319589585,1710883900442,-500.0,0.00031232,2]
[319589586,1710883900452,-151.0,0.00031232,7]
[319589587,1710883900461,-5350.36,0.00031232,2]
[319589588,1710883900471,-3797.58,0.00031232,2]
[319589589,1710883900481,-7343.47,0.00031232,2]
[319589590,1710883900490,-7073.37,0.00031232,2]
[319589591,1710883900501,-500.0,0.00031232,2]
[319589592,1710883900510,-5058.71,0.00031232,2]
[319589593,1710883900520,-500.0,0.00031232,2]
[319589594,1710883900530,-3114.8,0.00031232,2]
[319589595,1710883900541,-516.58,0.00031232,2]
[319589596,1710883900550,-3384.78,0.00031232,2]
[319589597,1710883900560,-9605.72,0.00031232,2]
[319589598,1710883900569,-4830.77,0.00031232,2]
[319589599,1710883900579,-1521.0,0.00031232,2]
[319589600,1710883900589,-151.0,0.00031232,7]
[319589601,1710883900598,-1377.4,0.00031232,2]
[319589602,1710883900608,-6164.8,0.00031232,2]
[319589603,1710883900618,-10419.2,0.00031232,2]
[319589604,1710883900627,-500.0,0.00031232,2]
[319589605,1710883900636,-27662.5,0.00031232,2]
[319589606,1710883900646,-13801.64,0.00031232,2]
[319589607,1710883900655,-1319.55,0.00031232,2]
[319589608,1710883900665,-813.27,0.00031232,2]
[319589609,1710883900674,-1101.07,0.00031232,2]
[319589610,1710883900684,-16616.69,0.00031232,2]
[319589611,1710883900693,-4213.14,0.00031232,2]
[319589612,1710883900703,-7171.46,0.00031232,2]
[319589613,1710883900713,-2825.94,0.00031232,2]
[319589614,1710883900722,-474.62,0.00031232,2]
[319589615,1710883900732,-500.0,0.00031232,2]
[319589616,1710883900742,-5213.56,0.00031232,2]
[319589617,1710883900751,-151.0,0.00031232,7]
[319589618,1710883900762,-1738.76,0.00031232,2]
[319589619,1710883900772,-3839.08,0.00031232,2]
[319589620,1710883900783,-3525.85,0.00031232,2]
[319589621,1710883900792,-15088.23,0.00031232,2]
[319589622,1710883900802,-15203.85,0.00031232,2]
[319589623,1710883900812,-732.9,0.00031232,2]
[319589624,1710883900822,-2988.25,0.00031232,2]
[319589625,1710883900831,-10000.0,0.00031232,7]
[319589626,1710883900841,-1562.83,0.00031232,2]
[319589627,1710883900851,-8565.47,0.00031232,2]
[319589628,1710883900861,-500.0,0.00031232,2]
[319589629,1710883900870,-10000.0,0.00031232,7]
[319589630,1710883900880,-1618.7,0.00031232,2]
[319589631,1710883900889,-579.17,0.00031232,2]
[319589632,1710883900899,-6726.59,0.00031232,2]
[319589633,1710883900908,-710.524031,0.00031232,7]
[319589634,1710883900918,-27171.19,0.00031232,2]
[319589635,1710883900928,-500.0,0.00031232,2]
[319589636,1710883900938,-1155.93,0.00031232,2]
[319589637,1710883900948,-8385.96,0.00031232,2]
[319589638,1710883900959,-710.524032,0.00031232,7]
[319589639,1710883900969,-3340.38,0.00031232,2]
[319589640,1710883900979,-1368.17,0.00031232,2]
[319589641,1710883900989,-500.0,0.00031232,2]
[319589642,1710883900998,-500.0,0.00031232,2]
[319589643,1710883901008,-552.59,0.00031232,2]
[319589644,1710883901018,-500.0,0.00031232,2]
[319589645,1710883901028,-500.0,0.00031232,2]
[319589646,1710883901039,-15669.37,0.00031232,2]
[319589647,1710883901049,-11650.07,0.00031232,2]
[319589648,1710883901059,-42879.44,0.00031232,2]
[319589649,1710883901069,-8051.45,0.00031232,2]
[319589650,1710883901079,-4699.27,0.00031232,2]
[319589651,1710883901089,-500.0,0.00031232,2]
[319589652,1710883901099,-197.669823,0.00031232,7]
[319589653,1710883901109,-500.0,0.00031232,2]
[319589654,1710883901122,-537.84,0.00031232,2]
[319589655,1710883901131,-567.22,0.00031232,2]
[319589656,1710883901141,-1100.67,0.00031232,2]
[319589657,1710883901150,-3604.5,0.00031232,2]
[319589658,1710883901162,-197.669832,0.00031232,7]
[319589659,1710883901172,-500.0,0.00031232,2]
[319589660,1710883901181,-830.55,0.00031232,2]
[319589661,1710883901191,-4631.22,0.00031232,2]
[319589662,1710883901201,-2094.61,0.00031232,2]
[319589663,1710883901213,-62217.7,0.00031232,2]
[319589664,1710883901222,-27416.23,0.00031232,2]
[319589665,1710883901233,-10729.57,0.00031232,2]
[319589666,1710883901243,-543.94,0.00031232,2]
[319589667,1710883901252,-7584.08,0.00031232,2]
[319589668,1710883901262,-500.0,0.00031232,2]
[319589669,1710883901271,-5369.24,0.00031232,2]
[319589670,1710883901282,-4331.12,0.00031232,2]
[319589671,1710883901292,-1227.45,0.00031232,2]
[319589672,1710883901301,-1532.97,0.00031232,2]
[319589673,1710883901311,-500.0,0.00031232,2]
[319589674,1710883901321,-3357.98,0.00031232,2]
[319589675,1710883901331,-6187.66,0.00031232,2]
[319589676,1710883901340,-500.0,0.00031232,2]
[319589677,1710883901350,-613.33,0.00031232,2]
[319589678,1710883901359,-7088.3,0.00031232,2]
[319589679,1710883901369,-8882.1,0.00031232,2]
[319589680,1710883901379,-500.0,0.00031232,2]
[319589681,1710883901389,-3796.41,0.00031232,2]
[319589682,1710883901399,-500.0,0.00031232,2]
[319589683,1710883901657,-500.0,0.00031232,2]
[319589684,1710883901670,-1290.92,0.00031232,2]
[319589685,1710883901680,-607.31,0.00031232,2]
[319589686,1710883901690,-1016.18,0.00031232,2]
[319589687,1710883901699,-1917.48,0.00031232,2]
[319589688,1710883901709,-1875.01,0.00031232,2]
[319589689,1710883901719,-16905.48,0.00031232,2]
[319589690,1710883901729,-3172.03,0.00031232,2]
[319589691,1710883901739,-35692.07,0.00031232,2]
[319589692,1710883901748,-500.0,0.00031232,2]
[319589693,1710883901759,-1297.28,0.00031232,2]
[319589694,1710883901769,-1142.27,0.00031232,2]
[319589695,1710883901780,-855.8,0.00031232,2]
[319589696,1710883901791,-500.0,0.00031232,2]
[319589697,1710883901800,-913.73,0.00031232,2]
[319589698,1710883901810,-2234.13,0.00031232,2]
[319589699,1710883901820,-866.16,0.00031232,2]
[319589700,1710883901830,-17286.9,0.00031232,2]
[319589701,1710883901840,-4688.61,0.00031232,2]
[319589702,1710883901849,-500.0,0.00031232,2]
[319589703,1710883901859,-500.0,0.00031232,2]
[319589704,1710883901868,-500.0,0.00031232,2]
[319589705,1710883901878,-500.0,0.00031232,2]
[319589706,1710883901887,-1996.89,0.00031232,2]
[319589707,1710883901897,-768.83,0.00031232,2]
[319589708,1710883901906,-566.2,0.00031232,2]
[319589709,1710883901915,-2249.09,0.00031232,2]
[319589710,1710883901924,-12794.23,0.00031232,2]
[319589711,1710883901934,-965.87,0.00031232,2]
[319589712,1710883901943,-500.0,0.00031232,2]
[319589713,1710883901953,-514.47,0.00031232,2]
[319589714,1710883901963,-721.54,0.00031232,2]
[319589715,1710883901972,-5976.67,0.00031232,2]
[319589716,1710883901982,-2375.0,0.00031232,2]
[319589717,1710883901991,-500.0,0.00031232,2]
[319589718,1710883902001,-7791.7,0.00031232,2]
[319589719,1710883902010,-5055.25,0.00031232,2]
[319589720,1710883902020,-155.1256498,0.00031232,2]
[319589721,1710883902030,-150.0,0.00031259,2]
[319589722,1710883902040,-150.0,0.00031259,2]
[319589723,1710883902049,-150.0,0.00031259,2]
[319589724,1710883902059,-150.0,0.00031259,2]
[319589725,1710883902068,-150.0,0.00031259,2]
[319589726,1710883902078,-167.0,0.00031369,2]
[319589727,1710883902088,-6447.0755401,0.00031431,3]
[319589728,1710883902097,-444.51426008,0.00031433,4]
[319589729,1710883902107,-253.51845741,0.00031433,4]
[319589730,1710883902116,-1414.21020202,0.00031434,4]
[319589731,1710883902126,-204.03543676,0.00031434,4]
[319589732,1710883902138,-235.02599217,0.00031435,4]
[319589733,1710883902147,-222.032006,0.00031449,3]
[319589734,1710883902156,-222.032006,0.00031449,4]
[319589735,1710883902165,-222.032006,0.00031459,4]
[319589736,1710883902176,-222.032006,0.00031459,3]
[319589737,1710883902186,-222.032006,0.00031469,3]
[319589738,1710883902195,-222.032006,0.00031469,4]
[319589739,1710883902205,-222.032006,0.00031479,4]
[319589740,1710883902216,-222.032006,0.00031479,3]
[319589741,1710883902226,-222.032006,0.00031489,3]
[319589742,1710883902236,-222.032006,0.00031489,4]
[319589743,1710883902245,-222.032006,0.00031499,4]
[319589744,1710883902255,-222.032006,0.00031499,3]
[319589745,1710883902264,-150.0,0.00031505,2]
[319589746,1710883902274,-150.0,0.00031505,2]
[319589747,1710883902283,-500.0,0.00031506,2]
[319589748,1710883902293,-500.0,0.00031506,2]
[319589749,1710883902303,-500.0,0.00031506,2]
[319589750,1710883902313,-500.0,0.00031506,2]
[319589751,1710883902323,-541.15,0.00031506,2]
[319589752,1710883902332,-500.0,0.00031506,2]
[319589753,1710883902341,-500.0,0.00031506,2]
[319589754,1710883902350,-500.0,0.00031506,2]
[319589755,1710883902360,-782.55,0.00031506,2]
[319589756,1710883902369,-1175.0,0.00031506,2]
[319589757,1710883902379,-813.24,0.00031506,2]
[319589758,1710883902388,-569.24,0.00031506,2]
[319589759,1710883902397,-798.81,0.00031506,2]
[319589760,1710883902407,-500.0,0.00031506,2]
[319589761,1710883902417,-500.0,0.00031506,2]
[319589762,1710883902427,-823.89,0.00031506,2]
[319589763,1710883902437,-500.0,0.00031506,2]
[319589764,1710883902449,-590.39,0.00031506,2]
[319589765,1710883902458,-621.72,0.00031506,2]
[319589766,1710883902468,-500.0,0.00031506,2]
[319589767,1710883902478,-500.0,0.00031506,2]
[319589768,1710883902487,-500.0,0.00031506,2]
[319589769,1710883902497,-500.0,0.00031506,2]
[319589770,1710883902507,-500.0,0.00031506,2]
[319589771,1710883902518,-500.0,0.00031506,2]
[319589772,1710883902527,-500.0,0.00031506,2]
[319589773,1710883902538,-500.0,0.00031506,2]
[319589774,1710883902547,-500.0,0.00031506,2]
[319589775,1710883902557,-500.0,0.00031506,2]
[319589776,1710883902566,-500.0,0.00031506,2]
[319589777,1710883902576,-500.0,0.00031506,2]
[319589778,1710883902586,-750.91,0.00031506,2]
[319589779,1710883902595,-827.98,0.00031506,2]
[319589780,1710883902605,-500.0,0.00031506,2]
[319589781,1710883902615,-562.59,0.00031506,2]
[319589782,1710883902625,-998.0,0.00031506,2]
[319589783,1710883902634,-500.0,0.00031506,2]
[319589784,1710883902644,-570.65,0.00031506,2]
[319589785,1710883902653,-500.0,0.00031506,2]
[319589786,1710883902662,-500.0,0.00031506,2]
[319589787,1710883902672,-500.0,0.00031506,2]
[319589788,1710883902681,-556.76998991,0.00031506,2]
[319589789,1710883902691,-287.53682179,0.00031506,2]
[319589790,1710883902700,-1839.1,0.00031506,2]
[319589791,1710883902710,-500.0,0.00031506,2]
[319589792,1710883902720,-500.0,0.00031506,2]
[319589793,1710883902729,-500.0,0.00031506,2]
[319589794,1710883902739,-500.0,0.00031506,2]
[319589795,1710883902748,-500.0,0.00031506,2]
[319589796,1710883902758,-1032.08,0.00031506,2]
[319589797,1710883902768,-729.17,0.00031506,2]
[319589798,1710883902777,-500.0,0.00031506,2]
[319589799,1710883902787,-1913.06,0.00031506,2]
[319589800,1710883902797,-500.0,0.00031506,2]
[319589801,1710883902806,-500.0,0.00031506,2]
[319589802,1710883902816,-500.0,0.00031506,2]
[319589803,1710883902826,-1372.24,0.00031506,2]
[319589804,1710883902835,-500.0,0.00031506,2]
[319589805,1710883902844,-711.63,0.00031506,2]
[319589806,1710883902854,-500.0,0.00031506,2]
[319589807,1710883902864,-1163.5,0.00031506,2]
[319589808,1710883902874,-500.0,0.00031506,2]
[319589809,1710883902886,-500.0,0.00031506,2]
[319589810,1710883902895,-500.0,0.00031506,2]
[319589811,1710883902905,-500.0,0.00031506,2]
[319589812,1710883902915,-500.0,0.00031506,2]
[319589813,1710883902924,-500.0,0.00031506,2]
[319589814,1710883902933,-652.32,0.00031506,2]
[319589815,1710883902943,-500.0,0.00031506,2]
[319589816,1710883902953,-500.0,0.00031506,2]
[319589817,1710883902962,-333.51740704,0.00031506,2]
[319589818,1710883902972,-500.0,0.00031506,2]
[319589819,1710883902981,-910.23,0.00031506,2]
[319589820,1710883902991,-500.0,0.00031506,2]
[319589821,1710883903001,-500.0,0.00031506,2]
[319589822,1710883903011,-500.0,0.00031506,2]
[319589823,1710883903020,-740.28,0.00031506,2]
[319589824,1710883903029,-624.91,0.00031506,2]
[319589825,1710883903040,-500.0,0.00031506,2]
[319589826,1710883903049,-968.04,0.00031506,2]
[319589827,1710883903059,-500.0,0.00031506,2]
[319589828,1710883903068,-500.0,0.00031506,2]
[319589829,1710883903077,-500.0,0.00031506,2]
[319589830,1710883903087,-500.0,0.00031506,2]
[319589831,1710883903096,-832.42,0.00031506,2]
[319589832,1710883903105,-500.0,0.00031506,2]
[319589833,1710883903118,-500.0,0.00031506,2]
[319589834,1710883903127,-500.0,0.00031506,2]
[319589835,1710883903136,-500.0,0.00031506,2]
[319589836,1710883903146,-500.0,0.00031506,2]
[319589837,1710883903158,-510.18,0.00031506,2]
[319589838,1710883903168,-420.5511393,0.00031506,2]
[319589839,1710883903178,-500.0,0.00031506,2]
[319589840,1710883903188,-1150.05,0.00031506,2]
[319589841,1710883903201,-500.0,0.00031506,2]
[319589842,1710883903211,-608.08,0.00031506,2]
[319589843,1710883903221,-505.97,0.00031506,2]
[319589844,1710883903230,-626.77,0.00031506,2]
[319589845,1710883903239,-1660.24,0.00031506,2]
[319589846,1710883903249,-500.0,0.00031506,2]
[319589847,1710883903258,-1083.97,0.00031506,2]
[319589848,1710883903267,-500.0,0.00031506,2]
[319589849,1710883903276,-500.0,0.00031506,2]
[319589850,1710883903287,-573.58,0.00031506,2]
[319589851,1710883903296,-500.0,0.00031506,2]
[319589852,1710883903305,-713.26,0.00031506,2]
[319589853,1710883903314,-524.58,0.00031506,2]
[319589854,1710883903323,-1659.61,0.00031506,2]
[319589855,1710883903332,-786.87,0.00031506,2]
[319589856,1710883903342,-987.6,0.00031506,2]
[319589857,1710883903351,-562.22,0.00031506,2]
[319589858,1710883903361,-884.6,0.00031506,2]
[319589859,1710883903370,-500.0,0.00031506,2]
[319589860,1710883903380,-509.12,0.00031506,2]
[319589861,1710883903389,-500.0,0.00031506,2]
[319589862,1710883903399,-1565.75,0.00031506,2]
[319589863,1710883903408,-704.58,0.00031506,2]
[319589864,1710883903417,-500.0,0.00031506,2]
[319589865,1710883903427,-500.0,0.00031506,2]
[319589866,1710883903436,-500.0,0.00031506,2]
[319589867,1710883903448,-500.0,0.00031506,2]
[319589868,1710883903458,-500.0,0.00031506,2]
[319589869,1710883903467,-1298.95,0.00031506,2]
[319589870,1710883903476,-1177.64,0.00031506,2]
[319589871,1710883903485,-500.0,0.00031506,2]
[319589872,1710883903494,-766.46,0.00031506,2]
[319589873,1710883903503,-500.0,0.00031506,2]
[319589874,1710883903513,-2115.61,0.00031506,2]
[319589875,1710883903522,-351.63633192,0.00031506,2]
[319589876,1710883903531,-1208.26,0.00031506,2]
[319589877,1710883903542,-1208.9,0.00031506,2]
[319589878,1710883903551,-723.63,0.00031506,2]
[319589879,1710883903560,-766.73,0.00031506,2]
[319589880,1710883903569,-710.55,0.00031506,2]
[319589881,1710883903578,-755.48,0.00031506,2]
[319589882,1710883903587,-500.0,0.00031506,2]
[319589883,1710883903596,-500.0,0.00031506,2]
[319589884,1710883903605,-2700.32,0.00031506,2]
[319589885,1710883903614,-500.0,0.00031506,2]
[319589886,1710883903623,-996.42,0.00031506,2]
[319589887,1710883903633,-500.0,0.00031506,2]
[319589888,1710883903643,-189.44657134,0.00031506,2]
[319589889,1710883903652,-963.09,0.00031506,2]
[319589890,1710883903661,-708.23,0.00031506,2]
[319589891,1710883903670,-698.72,0.00031506,2]
[319589892,1710883903679,-500.0,0.00031506,2]
[319589893,1710883903688,-1021.3,0.00031506,2]
[319589894,1710883903698,-535.49,0.00031506,2]
[319589895,1710883903707,-500.0,0.00031506,2]
[319589896,1710883903716,-4097.82,0.00031506,2]
[319589897,1710883903725,-1107.96,0.00031506,2]
[319589898,1710883903734,-588.9,0.00031506,2]
[319589899,1710883903743,-500.0,0.00031506,2]
[319589900,1710883903752,-500.0,0.00031506,2]
[319589901,1710883903761,-500.0,0.00031506,2]
[319589902,1710883903770,-678.64,0.00031506,2]
[319589903,1710883903779,-500.0,0.00031506,2]
[319589904,1710883903790,-500.0,0.00031506,2]
[319589905,1710883903799,-500.0,0.00031506,2]
[319589906,1710883903809,-500.0,0.00031506,2]
[319589907,1710883903818,-685.69,0.00031506,2]
[319589908,1710883903827,-751.92,0.00031506,2]
[319589909,1710883903837,-2201.35,0.00031506,2]
[319589910,1710883903847,-1806.15,0.00031506,2]
[319589911,1710883903856,-500.0,0.00031506,2]
[319589912,1710883903866,-1515.11,0.00031506,2]
[319589913,1710883903875,-1513.03,0.00031506,2]
[319589914,1710883903885,-500.0,0.00031506,2]
[319589915,1710883903894,-838.64,0.00031506,2]
[319589916,1710883903904,-572.1228641,0.00031506,2]
[319589917,1710883903913,-693.29,0.00031506,2]
[319589918,1710883903922,-4074.4,0.00031506,2]
[319589919,1710883904022,-517.57194614,0.00031506,2]
[319589920,1710883904032,-603.07,0.00031506,2]
[319589921,1710883904041,-781.62,0.00031506,2]
[319589922,1710883904051,-638.83,0.00031506,2]
[319589923,1710883904061,-500.0,0.00031506,2]
[319589924,1710883904070,-500.0,0.00031506,2]
[319589925,1710883904080,-500.0,0.00031506,2]
[319589926,1710883904089,-1180.36,0.00031506,2]
[319589927,1710883904098,-1494.04,0.00031506,2]
[319589928,1710883904108,-691.03,0.00031506,2]
[319589929,1710883904118,-504.50186907,0.00031506,2]
[319589930,1710883904130,-500.0,0.00031506,2]
[319589931,1710883904148,-1058.59,0.00031506,2]
[319589932,1710883904157,-782.29,0.00031506,2]
[319589933,1710883904166,-500.0,0.00031506,2]
[319589934,1710883904175,-500.0,0.00031506,2]
[319589935,1710883904185,-2757.61,0.00031506,2]
[319589936,1710883904194,-1130.81,0.00031506,2]
[319589937,1710883904203,-934.19,0.00031506,2]
[319589938,1710883904212,-500.0,0.00031506,2]
[319589939,1710883904221,-502.71,0.00031506,2]
[319589940,1710883904230,-626.57,0.00031506,2]
[319589941,1710883904240,-500.0,0.00031506,2]
[319589942,1710883904249,-781.11,0.00031506,2]
[319589943,1710883904258,-505.09,0.00031506,2]
[319589944,1710883904267,-846.76,0.00031506,2]
[319589945,1710883904276,-912.33,0.00031506,2]
[319589946,1710883904286,-2582.04,0.00031506,2]
[319589947,1710883904295,-500.0,0.00031506,2]
[319589948,1710883904304,-1278.95,0.00031506,2]
[319589949,1710883904313,-1020.62,0.00031506,2]
[319589950,1710883904322,-1074.07,0.00031506,2]
[319589951,1710883904331,-500.0,0.00031506,2]
[319589952,1710883904340,-1342.47,0.00031506,2]
[319589953,1710883904349,-500.0,0.00031506,2]
[319589954,1710883904357,-500.0,0.00031506,2]
[319589955,1710883904366,-859.38,0.00031506,2]
[319589956,1710883904375,-869.06,0.00031506,2]
[319589957,1710883904384,-500.0,0.00031506,2]
[319589958,1710883904393,-500.0,0.00031506,2]
[319589959,1710883904402,-567.85,0.00031506,2]
[319589960,1710883904410,-500.0,0.00031506,2]
[319589961,1710883904419,-500.0,0.00031506,2]
[319589962,1710883904428,-540.58,0.00031506,2]
[319589963,1710883904437,-691.28,0.00031506,2]
[319589964,1710883904446,-500.0,0.00031506,2]
[319589965,1710883904455,-1048.73,0.00031506,2]
[319589966,1710883904464,-731.41,0.00031506,2]
[319589967,1710883904473,-1662.72,0.00031506,2]
[319589968,1710883904482,-500.0,0.00031506,2]
[319589969,1710883904491,-795.79,0.00031506,2]
[319589970,1710883904500,-500.0,0.00031506,2]
[319589971,1710883904509,-863.23,0.00031506,2]
[319589972,1710883904518,-1377.63,0.00031506,2]
[319589973,1710883904527,-500.0,0.00031506,2]
[319589974,1710883904538,-2750.0,0.00031506,2]
[319589975,1710883904546,-500.0,0.00031506,2]
[319589976,1710883904555,-150.0,0.00031506,2]
[319589977,1710883904564,-1320.23,0.00031506,2]
[319589978,1710883904573,-500.0,0.00031506,2]
[319589979,1710883904582,-500.0,0.00031506,2]
[319589980,1710883904591,-852.1,0.00031506,2]
[319589981,1710883904600,-500.0,0.00031506,2]
[319589982,1710883904609,-500.0,0.00031506,2]
[319589983,1710883904618,-457.49983066,0.00031506,2]
[319589984,1710883904626,-500.0,0.00031506,2]
[319589985,1710883904635,-2264.1,0.00031506,2]
[319589986,1710883904644,-533.15,0.00031506,2]
[319589987,1710883904653,-500.0,0.00031506,2]
[319589988,1710883904662,-590.4,0.00031506,2]
[319589989,1710883904671,-768.62,0.00031506,2]
[319589990,1710883904680,-813.65,0.00031506,2]
[319589991,1710883904689,-1706.37,0.00031506,2]
[319589992,1710883904698,-500.0,0.00031506,2]
[319589993,1710883904707,-710.02,0.00031506,2]
[319589994,1710883904716,-951.49,0.00031506,2]
[319589995,1710883904725,-624.42,0.00031506,2]
[319589996,1710883904734,-500.0,0.00031506,2]
[319589997,1710883904744,-500.0,0.00031506,2]
[319589998,1710883904752,-500.0,0.00031506,2]
[319589999,1710883904761,-500.0,0.00031506,2]
[319590000,1710883904770,-1083.59,0.00031506,2]
[319590001,1710883904779,-1353.58,0.00031506,2]
[319590002,1710883904790,-500.0,0.00031506,2]
[319590003,1710883904799,-851.26,0.00031506,2]
[319590004,1710883904808,-797.1,0.00031506,2]
[319590005,1710883904817,-500.0,0.00031506,2]
[319590006,1710883904826,-1094.92,0.00031506,2]
[319590007,1710883904835,-875.48,0.00031506,2]
[319590008,1710883904844,-2365.74,0.00031506,2]
[319590009,1710883904853,-500.0,0.00031506,2]
[319590010,1710883904862,-1362.21,0.00031506,2]
[319590011,1710883904871,-1403.96,0.00031506,2]
[319590012,1710883904879,-500.0,0.00031506,2]
[319590013,1710883904888,-500.0,0.00031506,2]
[319590014,1710883904898,-590.08,0.00031506,2]
[319590015,1710883904908,-620.16,0.00031506,2]
[319590016,1710883904917,-506.75,0.00031506,2]
[319590017,1710883904926,-569.27,0.00031506,2]
[319590018,1710883904935,-2130.05,0.00031506,2]
[319590019,1710883904944,-518.16,0.00031506,2]
[319590020,1710883904953,-1766.0,0.00031506,2]
[319590021,1710883904962,-2685.94,0.00031506,2]
[319590022,1710883904971,-873.29,0.00031506,2]
[319590023,1710883904980,-2470.79,0.00031506,2]
[319590024,1710883904990,-500.0,0.00031506,2]
[319590025,1710883904999,-1534.58,0.00031506,2]
[319590026,1710883905008,-500.0,0.00031506,2]
[319590027,1710883905018,-500.0,0.00031506,2]
[319590028,1710883905027,-1036.45,0.00031506,2]
[319590029,1710883905037,-500.0,0.00031506,2]
[319590030,1710883905046,-512.06,0.00031506,2]
[319590031,1710883905055,-1470.65,0.00031506,2]
[319590032,1710883905065,-339.59040799,0.00031506,2]
[319590033,1710883905074,-1385.11,0.00031506,2]
[319590034,1710883905082,-500.0,0.00031506,2]
[319590035,1710883905091,-500.0,0.00031506,2]
[319590036,1710883905100,-539.91,0.00031506,2]
[319590037,1710883905110,-892.09,0.00031506,2]
[319590038,1710883905123,-1041.1,0.00031506,2]
[319590039,1710883905132,-500.0,0.00031506,2]
[319590040,1710883905142,-4269.17,0.00031506,2]
[319590041,1710883905151,-500.0,0.00031506,2]
[319590042,1710883905161,-500.0,0.00031506,2]
[319590043,1710883905169,-500.0,0.00031506,2]
[319590044,1710883905178,-670.7,0.00031506,2]
[319590045,1710883905187,-1864.38,0.00031506,2]
[319590046,1710883905198,-618.06,0.00031506,2]
[319590047,1710883905207,-597.33,0.00031506,2]
[319590048,1710883905216,-2495.07,0.00031506,2]
[319590049,1710883905225,-4586.31,0.00031506,2]
[319590050,1710883905234,-1054.82,0.00031506,2]
[319590051,1710883905243,-1014.6,0.00031506,2]
[319590052,1710883905253,-602.71094899,0.00031506,2]
[319590053,1710883905261,-500.0,0.00031506,2]
[319590054,1710883905271,-500.0,0.00031506,2]
[319590055,1710883905280,-500.0,0.00031506,2]
[319590056,1710883905292,-500.0,0.00031506,2]
[319590057,1710883905301,-500.0,0.00031506,2]
[319590058,1710883905310,-1337.58,0.00031506,2]
[319590059,1710883905319,-512.04,0.00031506,2]
[319590060,1710883905328,-677.62,0.00031506,2]
[319590061,1710883905337,-1526.76,0.00031506,2]
[319590062,1710883905345,-1259.98,0.00031506,2]
[319590063,1710883905354,-1566.09,0.00031506,2]
[319590064,1710883905363,-775.9,0.00031506,2]
[319590065,1710883905372,-500.0,0.00031506,2]
[319590066,1710883905381,-694.07,0.00031506,2]
[319590067,1710883905390,-2087.64,0.00031506,2]